bitfinex/quotes_ETHUSD_20250526
["timestamp","ask_amount","ask_price","bid_price","bid_amount"]
[1748244872676,0.05,2576.9,2576.6,6.89069825]
[1748244874957,0.05,2576.9,2576.7,8.03880647]
[1748244875188,0.05,2576.9,2576.7,8.0]
[1748244875790,0.05,2576.9,2576.6,8.0]
[1748244876694,1.599,2576.8,2576.4,8.0]
[1748244877766,1.599,2576.8,2576.3,8.0]
[1748244878803,0.05,2576.9,2576.5,6.89069825]
[1748244878979,0.05,2576.9,2576.6,0.68906983]
[1748244879177,0.05,2576.9,2576.6,8.68906983]
[1748244879391,0.05,2576.9,2576.6,14.77906983]
[1748244880308,0.05,2576.9,2576.6,14.09]
[1748244880467,1.5632,2576.8,2576.6,6.09]
[1748244882906,0.05,2576.9,2576.6,6.09]
[1748244883403,0.05,2576.9,2576.7,8.0]
[1748244883710,0.05,2576.9,2576.8,14.89069825]
[1748244885267,0.05,2576.9,2576.8,20.98069825]
[1748244889021,0.05,2576.9,2576.8,14.09]
[1748244889313,1.6979,2576.9,2576.4,0.45672278]
[1748244889698,1.6979,2576.9,2576.4,7.34742103]
[1748244889899,0.05,2576.9,2576.4,7.34742103]
[1748244890212,0.05,2576.9,2576.8,8.0]
[1748244893984,0.05,2576.9,2576.8,15.7551]
[1748244894485,0.05,2576.9,2576.8,17.1746259]
[1748244894689,0.05,2576.9,2576.8,25.3266259]
[1748244894883,0.05,2576.9,2576.8,17.1746259]
[1748244895085,0.05,2576.9,2576.8,25.3266259]
[1748244897224,0.05,2576.9,2576.8,16.6246259]
[1748244897401,0.05,2576.9,2576.8,20.0321]
[1748244897597,0.05,2576.9,2576.8,15.7551]
[1748244897797,0.05,2576.9,2576.8,6.09]
[1748244898323,0.05,2576.9,2576.8,14.09]
[1748244900130,0.05,2576.9,2576.8,16.71740551]
[1748244900623,0.05,2576.9,2576.8,21.0183259]
[1748244901691,0.05,2577.9,2577.0,1.6342]
[1748244901897,0.05,2577.9,2577.8,9.6342]
[1748244902103,0.05,2577.9,2577.8,20.0002]
[1748244902313,0.05,2577.9,2577.8,20.5502]
[1748244907842,0.05,2577.9,2577.8,16.2742]
[1748244908010,0.05,2577.9,2577.8,14.09]
[1748244908703,0.05,2577.9,2577.8,18.364]
[1748244909230,0.05,2577.9,2577.8,14.09]
[1748244910711,0.05,2577.9,2577.8,6.09]
[1748244911300,1.6235,2577.9,2577.8,6.09]
[1748244911851,1.6235,2577.9,2577.6,8.0]
[1748244912009,1.6235,2577.9,2577.3,6.09]
[1748244912638,1.6235,2577.9,2577.4,8.0]
[1748244916332,1.6235,2577.9,2577.4,14.89069825]
[1748244916847,1.6235,2577.9,2577.4,8.0]
[1748244917046,1.6235,2577.9,2577.4,14.89069825]
[1748244917544,1.6235,2577.9,2577.4,15.31861864]
[1748244917745,1.6235,2577.9,2577.4,21.40861864]
[1748244919856,0.05,2577.9,2577.8,8.0]
[1748244920622,0.05,2577.9,2577.7,8.52259825]
[1748244921843,0.05,2577.9,2577.8,0.55]
[1748244922043,0.05,2577.9,2577.7,8.52259825]
[1748244922242,0.05,2577.9,2577.7,6.89069825]
[1748244923756,0.05,2577.9,2577.8,0.55]
[1748244923959,0.05,2577.9,2577.8,2.51872039]
[1748244924164,1.5033,2578.6,2578.0,0.55]
[1748244924360,1.5033,2578.6,2578.5,6.89069825]
[1748244925252,1.6219,2578.8,2578.5,6.89069825]
[1748244926731,0.05,2578.9,2578.5,12.98069825]
[1748244927669,0.05,2578.9,2578.8,6.89069825]
[1748244927829,0.05,2578.9,2578.8,12.98069825]
[1748244929342,0.05,2578.9,2578.8,14.51389825]
[1748244929544,0.05,2578.9,2578.8,15.06389825]
[1748244931247,0.05,2578.9,2578.8,23.06389825]
[1748244931862,0.05,2578.9,2578.8,23.93342415]
[1748244932079,0.05,2578.9,2578.8,23.50550376]
[1748244932435,0.05,2578.9,2578.8,23.93342415]
[1748244934435,0.05,2578.9,2578.8,23.06389825]
[1748244934636,0.05,2578.9,2578.8,20.98069825]
[1748244934943,0.05,2578.9,2578.8,25.25269825]
[1748244937938,0.05,2578.9,2578.8,12.98069825]
[1748244938134,0.05,2578.9,2578.8,17.25169825]
[1748244938467,0.05,2578.9,2578.8,25.25169825]
[1748244943515,0.05,2578.9,2578.8,20.98069825]
[1748244944420,0.05,2578.9,2578.8,8.0]
[1748244945219,0.05,2578.9,2578.8,14.89069825]
[1748244948306,1.5057,2579.4,2578.9,8.0]
[1748244948516,1.5057,2579.4,2579.1,6.89069825]
[1748244950021,1.5057,2579.4,2579.1,12.98069825]
[1748244950932,1.6345,2579.8,2579.2,14.09]
[1748244951090,1.6345,2579.8,2579.4,8.0]
[1748244952450,1.6345,2579.8,2579.4,14.89069825]
[1748244954640,1.6345,2579.8,2579.4,8.0]
[1748244956904,1.6345,2579.8,2579.2,8.0]
[1748244958907,1.6345,2579.8,2579.2,14.89069825]
[1748244959604,1.6345,2579.8,2579.2,8.0]
[1748244962025,1.6345,2579.8,2579.2,11.29995399]
[1748244963165,1.6345,2579.8,2579.5,8.0]
[1748244965069,1.6345,2579.8,2579.6,3.29995399]
[1748244965247,0.05,2579.9,2579.7,8.0]
[1748244965453,0.05,2579.9,2579.8,11.29995399]
[1748244967273,0.05,2579.9,2579.8,8.0]
[1748244968347,0.05,2579.9,2579.8,11.29995399]
[1748244971696,0.05,2579.9,2579.8,8.0]
[1748244972492,1.6999,2579.9,2579.8,8.0]
[1748244980605,0.05,2579.9,2579.8,8.0]
[1748244981394,0.05,2579.9,2579.8,14.09]
[1748244981611,0.05,2579.9,2579.8,15.6465]
[1748244981895,0.05,2580.9,2579.8,15.6465]
[1748244981896,3.87,2580.7,2579.9,8.8695259]
[1748244982103,1.5373,2580.8,2580.5,8.0]
[1748244982759,0.05,2580.9,2580.7,3.29995399]
[1748244982961,2.22569592,2581.1,2580.9,8.0]
[1748244983261,2.53733743,2581.8,2581.1,8.0]
[1748244983594,2.53733743,2581.8,2581.6,3.29995399]
[1748244983800,2.53733743,2581.8,2581.4,3.29995399]
[1748244983999,2.58733743,2581.9,2581.4,3.29995399]
[1748244984717,2.58733743,2581.9,2581.7,8.0]
[1748244986111,2.99707117,2581.9,2581.1,8.0]
[1748244986814,2.99707117,2581.9,2581.0,1.5826]
[1748244987026,5.4541,2581.8,2581.0,0.38356397]
[1748244987373,1.5861,2581.8,2580.9,8.43442462]
[1748244987574,2.43121712,2581.8,2580.9,8.43442462]
[1748244987876,1.5861,2581.7,2581.0,8.0]
[1748244988097,1.5861,2581.7,2580.8,8.0]
[1748244988481,1.5861,2581.7,2581.3,8.0]
[1748244988686,1.5861,2581.7,2581.0,9.5826]
[1748244988883,2.08795546,2581.7,2580.8,8.0]
[1748244989103,2.08795546,2581.7,2580.9,8.0]
[1748244989303,1.5861,2581.5,2580.7,8.0]
[1748244989508,1.5861,2581.5,2580.6,8.19897457]
[1748244989723,1.5861,2581.5,2580.7,6.85182462]
[1748244990013,4.36985546,2581.7,2581.0,6.85182462]
[1748244990217,5.95595546,2581.7,2581.1,8.0]
[1748244990522,2.08795546,2581.7,2581.1,8.0]
[1748244992738,2.08795546,2581.7,2581.4,8.0]
[1748244992739,1.5861,2581.7,2581.4,8.0]
[1748244993033,0.05,2581.9,2581.5,0.03873445]
[1748244993237,0.05,2581.9,2581.4,9.5072]
[1748244993238,0.05,2581.9,2581.7,8.0]
[1748244993395,0.05,2581.9,2581.7,6.85182462]
[1748244993935,0.05,2581.9,2581.5,4.261]
[1748244994153,0.05,2581.9,2581.6,0.45489545]
[1748244994333,0.05,2581.9,2581.6,7.34826346]
[1748244994798,0.05,2581.9,2581.8,1.5021]
[1748244995254,0.05,2581.9,2581.8,1.99853884]
[1748244995537,0.05,2581.9,2581.8,10.54853884]
[1748244995899,0.05,2581.9,2581.8,10.63043884]
[1748244997114,0.05,2581.9,2581.8,14.34143884]
[1748244997328,0.05,2581.9,2581.8,10.08043884]
[1748244997528,0.05,2581.9,2581.8,14.34143884]
[1748244998747,0.05,2581.9,2581.8,14.34043884]
[1748244999338,0.05,2581.9,2581.8,10.08043884]
[1748244999515,0.05,2581.9,2581.8,14.34043884]
[1748244999713,0.05,2581.9,2581.8,10.08043884]
[1748245000019,0.05,2581.9,2581.8,14.34043884]
[1748245001640,0.05,2581.9,2581.8,2.56485923]
[1748245001824,0.05,2581.9,2581.8,6.34043884]
[1748245002317,0.05,2581.9,2581.8,2.08043884]
[1748245002655,0.05,2581.9,2581.8,6.34043884]
[1748245003159,0.05,2581.9,2581.8,6.82485923]
[1748245003319,0.05,2581.9,2581.8,7.37485923]
[1748245003860,0.05,2581.9,2581.8,2.56485923]
[1748245004063,0.05,2581.9,2581.8,6.34043884]
[1748245004837,0.05,2581.9,2581.8,2.08043884]
[1748245005036,0.05,2581.9,2581.8,6.33943884]
[1748245007973,0.05,2581.9,2581.8,17.63193477]
[1748245008982,0.05,2581.9,2581.8,23.72193477]
[1748245009175,0.05,2581.9,2581.8,24.20635516]
[1748245011447,0.05,2581.9,2581.8,28.04885109]
[1748245011692,0.05,2581.9,2581.8,24.75635516]
[1748245013099,0.05,2581.9,2581.8,20.49735516]
[1748245013293,0.05,2581.9,2581.8,28.62235516]
[1748245013452,0.05,2581.9,2581.8,20.49735516]
[1748245013656,0.05,2581.9,2581.8,28.62235516]
[1748245014403,0.05,2581.9,2581.8,31.91485109]
[1748245016263,0.05,2581.9,2581.8,28.62235516]
[1748245016765,0.05,2581.9,2581.8,31.91485109]
[1748245017284,0.05,2581.9,2581.8,28.13793477]
[1748245018389,0.05,2581.9,2581.8,14.09]
[1748245018596,0.05,2581.9,2581.8,21.64149593]
[1748245018802,0.05,2581.9,2581.8,17.38249593]
[1748245020783,0.05,2581.9,2581.8,21.7214307]
[1748245020984,0.05,2581.9,2581.8,16.11585109]
[1748245021210,0.05,2581.9,2581.8,17.68585109]
[1748245023526,1.6346,2582.9,2582.6,3.29249593]
[1748245023820,1.6346,2582.9,2582.8,3.29249593]
[1748245024020,1.6346,2582.9,2582.6,3.29249593]
[1748245024624,1.6277,2582.7,2582.4,8.0]
[1748245024980,1.6277,2582.7,2582.5,3.29249593]
[1748245026398,1.5839,2582.9,2582.5,3.29249593]
[1748245027123,1.5839,2582.9,2582.5,3.67541231]
[1748245028187,1.5839,2582.9,2582.6,8.0]
[1748245028829,1.5839,2582.9,2582.5,3.29249593]
[1748245031548,1.5839,2582.9,2582.0,8.00889359]
[1748245031704,3.915,2582.9,2582.2,3.29249593]
[1748245031891,1.6487,2582.7,2582.2,3.29249593]
[1748245032616,1.6652,2582.5,2582.2,3.29249593]
[1748245033437,0.36170847,2582.4,2582.2,3.29249593]
[1748245034290,0.36170847,2582.3,2582.2,11.29249593]
[1748245035898,1.5384,2582.2,2582.0,14.47704291]
[1748245036129,1.5384,2582.2,2582.1,8.0]
[1748245037035,1.90012167,2582.2,2582.1,8.0]
[1748245037212,1.90012167,2582.2,2582.0,8.0]
[1748245037405,1.90012167,2582.2,2581.8,8.0]
[1748245038009,1.90012167,2582.2,2581.9,3.29249593]
[1748245038232,0.36172167,2582.1,2582.0,8.0]
[1748245038569,0.36172167,2582.1,2582.0,8.48442039]
[1748245038710,0.36172167,2582.1,2582.0,8.98085923]
[1748245039111,0.36172167,2582.3,2582.0,8.98085923]
[1748245039346,0.36172167,2582.3,2582.2,11.29249593]
[1748245039651,1.5384,2582.6,2582.3,8.0]
[1748245039879,1.5384,2582.6,2582.5,11.29249593]
[1748245040209,1.6812,2582.9,2582.5,3.29249593]
[1748245040408,1.6812,2582.9,2582.8,8.0]
[1748245041035,2.04272468,2582.9,2582.8,8.0]
[1748245041943,2.04272468,2582.9,2582.6,8.0]
[1748245042148,2.63359715,2582.9,2582.6,8.0]
[1748245042740,2.63359715,2582.9,2582.2,8.49643884]
[1748245042941,2.63359715,2582.9,2582.5,8.0]
[1748245043136,1.99242468,2582.8,2582.3,3.29249593]
[1748245043454,1.99242468,2582.8,2582.4,8.0]
[1748245043675,0.6248544,2582.8,2582.1,3.29249593]
[1748245043823,1.6309,2582.7,2582.1,3.29249593]
[1748245044024,1.6309,2582.7,2582.2,8.0]
[1748245044344,0.36152468,2582.6,2582.2,8.0]
[1748245045768,0.36152468,2582.5,2582.2,8.0]
[1748245046064,0.36152468,2582.5,2582.4,3.29249593]
[1748245050567,0.36152468,2582.5,2582.4,4.27335516]
[1748245050936,5.5237,2582.9,2582.4,4.27335516]
[1748245051132,6.07607,2582.9,2582.7,8.0]
[1748245051569,6.07607,2582.9,2582.4,0.49643884]
[1748245051766,1.6151,2582.8,2582.4,8.0]
[1748245052201,0.36151018,2582.7,2582.4,8.0]
[1748245053399,0.36151018,2582.6,2582.4,8.0]
[1748245054038,1.6151,2582.8,2582.4,8.0]
[1748245054234,0.608347,2582.7,2582.4,8.0]
[1748245054779,0.608347,2582.7,2582.6,8.0]
[1748245055677,1.5458,2582.6,2582.4,8.0]
[1748245055883,0.36161438,2582.5,2582.4,8.0]
[1748245058800,0.36161438,2582.5,2582.4,8.48442039]
[1748245060117,0.36161438,2582.5,2582.4,8.98085923]
[1748245061119,5.4228,2582.9,2582.4,8.98085923]
[1748245061299,5.4228,2582.9,2582.8,11.29249593]
[1748245061687,5.78455463,2582.9,2582.8,11.29249593]
[1748245063877,5.78455463,2582.9,2582.8,8.0]
[1748245064599,1.91955463,2582.9,2582.8,11.29249593]
[1748245064772,0.41175463,2582.9,2582.8,11.29249593]
[1748245064987,0.41175463,2582.9,2582.8,12.27335516]
[1748245066079,0.05,2582.9,2582.8,12.27335516]
[1748245067922,0.05,2582.9,2582.8,11.78893477]
[1748245068576,0.05,2582.9,2582.8,11.29249593]
[1748245069020,0.05,2582.9,2582.8,8.0]
[1748245071014,0.41140822,2582.9,2582.8,8.0]
[1748245073128,1.00346904,2582.9,2582.8,8.0]
[1748245073421,2.51646904,2582.9,2582.4,11.29249593]
[1748245074223,0.36140822,2582.8,2582.4,11.29249593]
[1748245074624,0.36140822,2582.8,2582.7,8.0]
[1748245074791,4.22640822,2582.8,2582.7,8.0]
[1748245077419,4.80534904,2582.8,2582.7,8.0]
[1748245078243,1.6174,2582.7,2582.4,0.49643884]
[1748245078417,1.6174,2582.7,2582.1,8.0]
[1748245078754,1.6174,2582.7,2582.2,3.29249593]
[1748245079343,0.36140822,2582.6,2582.2,3.29249593]
[1748245079545,3.865,2582.5,2582.4,3.29249593]
[1748245079714,0.36140822,2582.6,2582.4,3.29249593]
[1748245079914,4.22640822,2582.6,2582.4,3.29249593]
[1748245080116,0.36140822,2582.6,2582.5,0.48442039]
[1748245080318,0.36140822,2582.6,2582.5,2.53075923]
[1748245080521,0.05,2582.9,2582.5,8.62075923]
[1748245080711,2.20299337,2583.5,2582.9,1.5499]
[1748245080907,0.61489337,2583.5,2583.4,3.29249593]
[1748245081107,0.61489337,2583.5,2583.4,3.77691632]
[1748245081418,5.4531,2583.7,2583.4,3.77691632]
[1748245081419,5.4531,2583.7,2583.4,3.29249593]
[1748245081622,0.36143476,2583.5,2583.1,8.0]
[1748245081810,0.36143476,2583.5,2583.4,3.29249593]
[1748245083956,3.865,2583.7,2583.1,8.0]
[1748245083957,0.36143476,2583.6,2583.1,11.29249593]
[1748245084254,1.5689,2583.5,2583.1,3.29249593]
[1748245084818,1.5689,2583.5,2583.0,8.39337697]
[1748245085018,1.5441,2583.3,2582.9,3.29249593]
[1748245085418,3.865,2583.3,2582.9,3.29249593]
[1748245085744,1.5441,2583.0,2582.2,0.45839766]
[1748245085956,1.5441,2582.7,2582.2,5.68087697]
[1748245086158,0.36143476,2582.6,2582.4,3.29249593]
[1748245086664,0.36143476,2582.6,2582.2,5.22247931]
[1748245087047,1.5441,2582.5,2582.2,5.22247931]
[1748245087248,5.77053476,2582.5,2582.2,1.92998338]
[1748245087466,0.96426369,2582.4,2582.2,1.92998338]
[1748245088864,0.96426369,2582.4,2582.0,8.0]
[1748245089164,0.96426369,2582.4,2582.0,8.48442039]
[1748245089964,0.96426369,2582.4,2582.0,0.48442039]
[1748245090167,1.5925,2582.3,2581.5,6.09]
[1748245090327,2.22983637,2582.3,2581.6,8.0]
[1748245090527,0.36096085,2582.2,2581.6,8.0]
[1748245090727,0.36096085,2582.2,2581.6,8.48442039]
[1748245090965,0.36096085,2582.2,2581.7,0.48442039]
[1748245091165,3.865,2582.1,2581.7,0.48442039]
[1748245091327,4.22596085,2582.1,2581.8,6.84955627]
[1748245091666,4.22596085,2582.1,2581.9,0.48442039]
[1748245093247,4.22596085,2582.2,2581.9,0.48442039]
[1748245093446,0.36096085,2582.2,2581.9,0.48442039]
[1748245094169,6.09483637,2582.3,2581.9,0.48442039]
[1748245094373,0.60948364,2582.2,2581.9,0.48442039]
[1748245096073,0.60948364,2582.2,2581.8,12.93955627]
[1748245097879,5.4585,2582.3,2581.8,12.93955627]
[1748245098474,1.5925,2582.3,2581.8,12.93955627]
[1748245098654,5.4585,2582.3,2581.8,12.93955627]
[1748245099894,1.5925,2582.3,2581.8,12.93955627]
[1748245100045,0.36096085,2582.7,2582.1,6.84955627]
[1748245100046,3.866,2582.4,2582.1,6.84955627]
[1748245100573,1.5779,2582.3,2582.1,6.84955627]
[1748245100889,1.5779,2582.3,2582.0,6.09]
[1748245101238,3.866,2582.4,2582.0,6.09]
[1748245101444,3.866,2582.4,2582.1,6.84955627]
[1748245102758,1.6341,2582.5,2582.1,6.84955627]
[1748245102954,1.6341,2582.5,2582.2,0.00488618]
[1748245103259,5.5001,2582.5,2582.2,0.00488618]
[1748245103654,6.08620608,2582.5,2582.2,0.00488618]
[1748245104578,0.36096085,2582.4,2582.2,0.00488618]
[1748245106072,0.36096085,2582.4,2581.9,0.00488618]
[1748245107387,0.36096085,2582.4,2581.9,8.00488618]
[1748245108269,0.36096085,2582.4,2581.9,0.00488618]
[1748245108473,1.5919,2582.3,2581.9,0.00488618]
[1748245108845,1.5919,2582.3,2581.6,5.80055997]
[1748245109054,0.36096085,2582.2,2581.6,5.80055997]
[1748245110189,0.36096085,2582.2,2581.8,3.2936955]
[1748245110504,1.6644,2582.1,2581.6,3.2936955]
[1748245110702,0.56349694,2582.0,2581.6,3.2936955]
[1748245111005,4.42949694,2582.0,2581.6,3.2936955]
[1748245111651,1.5397,2581.9,2581.2,1.15108706]
[1748245111851,1.5397,2581.7,2581.2,0.66666667]
[1748245112057,5.98310417,2581.6,2581.2,0.66666667]
[1748245112366,0.36096085,2581.5,2581.2,3.96036217]
[1748245112594,0.36096085,2581.5,2581.2,0.66666667]
[1748245112897,1.558,2581.4,2581.2,0.66666667]
[1748245114653,0.36096085,2581.3,2581.2,0.66666667]
[1748245115594,0.94024477,2581.3,2581.2,0.66666667]
[1748245117269,6.44306173,2581.3,2581.2,0.66666667]
[1748245117477,5.86377781,2581.3,2581.2,0.66666667]
[1748245119416,1.98976085,2581.3,2581.2,0.66666667]
[1748245120025,5.85676085,2581.3,2581.2,0.66666667]
[1748245121024,5.4958,2581.3,2581.2,0.66666667]
[1748245121221,6.46885357,2581.3,2581.2,0.66666667]
[1748245122226,4.90115357,2581.3,2581.2,0.66666667]
[1748245122532,1.99438766,2581.3,2581.2,0.66666667]
[1748245122825,0.06067532,2581.3,2581.2,0.66666667]
[1748245122999,0.42163617,2581.3,2581.2,0.66666667]
[1748245123199,1.12740417,2581.6,2581.2,0.66666667]
[1748245123200,3.867,2581.5,2581.2,0.66666667]
[1748245124430,4.2537,2581.5,2581.2,0.66666667]
[1748245125529,1.6242,2581.4,2581.2,0.66666667]
[1748245125701,4.2537,2581.5,2581.2,0.66666667]
[1748245127131,8.12741927,2581.5,2581.2,0.66666667]
[1748245128835,1.6501,2581.4,2581.2,0.66666667]
[1748245129136,4.2537,2581.5,2581.2,0.66666667]
[1748245129735,8.12743842,2581.5,2581.2,0.66666667]
[1748245130341,3.2336,2581.5,2581.2,0.66666667]
[1748245130512,7.10733511,2581.5,2581.2,0.66666667]
[1748245130713,2.2667,2581.5,2581.2,0.66666667]
[1748245130916,3.868,2581.7,2581.2,0.66666667]
[1748245131137,7.7414221,2581.7,2581.2,0.66666667]
[1748245131315,3.87358021,2581.6,2581.2,0.66666667]
[1748245131535,6.59144732,2581.7,2581.2,0.66666667]
[1748245132151,1.6006,2581.5,2581.2,0.66666667]
[1748245132353,3.8735817,2581.6,2581.2,0.66666667]
[1748245133435,5.34507061,2581.6,2581.2,0.66666667]
[1748245134857,1.47148891,2581.6,2581.2,0.66666667]
[1748245135171,3.87401696,2581.3,2581.2,0.66666667]
[1748245135357,1.6065,2581.3,2581.2,0.66666667]
[1748245135560,5.48051696,2581.3,2581.2,0.66666667]
[1748245135774,5.8413105,2581.3,2581.2,0.66666667]
[1748245136177,5.1362057,2581.3,2581.2,0.66666667]
[1748245136346,5.64982627,2581.3,2581.2,0.66666667]
[1748245138481,6.19982627,2581.3,2581.2,0.66666667]
[1748245139190,3.87358523,2581.6,2581.2,9.35093081]
[1748245139379,7.74085994,2582.1,2581.3,3.98047485]
[1748245139553,3.87366658,2581.6,2581.3,3.98047485]
[1748245139752,3.34486658,2581.6,2581.5,3.29621071]
[1748245139983,4.06669161,2581.6,2581.5,3.29621071]
[1748245140888,4.06669161,2581.6,2581.5,11.29621071]
[1748245141091,4.06669161,2581.6,2581.5,11.49241893]
[1748245142280,4.23979161,2581.6,2581.5,11.49241893]
[1748245145272,8.10779161,2581.6,2581.5,11.49241893]
[1748245150038,8.10779161,2581.6,2581.5,0.19620822]
[1748245150254,3.87371683,2581.5,2581.4,3.29621071]
[1748245150608,3.41471683,2581.5,2581.4,3.29621071]
[1748245151944,3.77701599,2581.5,2581.4,11.29621071]
[1748245152446,0.36229916,2581.5,2581.4,11.29621071]
[1748245152646,4.23601599,2581.5,2581.4,11.29621071]
[1748245153336,4.23601599,2581.5,2581.4,11.49412548]
[1748245153648,5.89549675,2581.5,2581.4,11.49412548]
[1748245154153,5.89549675,2581.5,2581.4,8.19791477]
[1748245154352,6.61859675,2581.5,2581.4,0.19791477]
[1748245154652,4.42401696,2581.3,2581.2,0.66666667]
[1748245154860,5.52829484,2581.3,2581.2,3.96287738]
[1748245155657,5.890594,2581.3,2581.2,3.96287738]
[1748245156272,3.87208479,2582.6,2581.2,12.83761758]
[1748245156417,0.6181436,2581.6,2581.3,0.68426414]
[1748245156628,0.44916363,2581.5,2581.3,0.68426414]
[1748245156827,4.1783,2581.6,2581.3,0.68426414]
[1748245157023,7.85206709,2581.6,2581.3,0.68426414]
[1748245157863,7.74156709,2581.6,2581.5,11.29621071]
[1748245161262,3.87356709,2581.6,2581.5,11.29621071]
[1748245161579,7.74156709,2581.6,2581.5,11.29621071]
[1748245161887,9.32756621,2581.6,2581.5,11.29621071]
[1748245162396,9.32756621,2581.6,2581.2,0.85714273]
[1748245162397,0.55,2581.4,2581.2,0.85714273]
[1748245162691,8.29187403,2581.4,2581.3,3.29621071]
[1748245164075,4.245,2581.6,2581.4,8.0]
[1748245164280,3.87373063,2581.5,2581.2,2.40994273]
[1748245164456,3.87373063,2581.5,2581.4,3.29621071]
[1748245167884,3.868,2581.5,2581.4,3.29621071]
[1748245168185,3.868,2581.6,2581.4,3.76556766]
[1748245168368,3.868,2581.6,2581.5,11.29621071]
[1748245169046,4.23009948,2581.6,2581.5,11.29621071]
[1748245169248,8.10366626,2581.6,2581.5,11.29621071]
[1748245169553,4.23566626,2581.6,2581.5,11.29621071]
[1748245169874,8.10366626,2581.6,2581.5,11.29621071]
[1748245170261,4.23566626,2581.6,2581.5,11.29621071]
[1748245170460,8.10366626,2581.6,2581.5,11.29621071]
[1748245171287,4.23566626,2581.6,2581.5,11.29621071]
[1748245171450,4.23009948,2581.6,2581.5,11.29621071]
[1748245171994,0.36209948,2581.6,2581.5,11.29621071]
[1748245172194,4.23009948,2581.6,2581.5,11.29621071]
[1748245172594,4.23566626,2581.6,2581.5,11.29621071]
[1748245175405,4.23566626,2581.6,2581.5,8.0]
[1748245175602,3.87416705,2581.2,2581.1,0.05]
[1748245175799,12.34926653,2581.2,2581.1,3.34621071]
[1748245176984,12.89926653,2581.2,2581.1,3.34621071]
[1748245177200,14.57659632,2581.2,2581.1,11.34621071]
[1748245177999,14.57659632,2581.2,2581.1,8.05]
[1748245178188,14.57659632,2581.2,2581.1,11.34621071]
[1748245179106,14.57659632,2581.2,2581.1,0.05]
[1748245180065,3.87461738,2580.9,2580.8,8.0]
[1748245180268,8.57252668,2580.9,2580.8,8.0]
[1748245180905,8.11352674,2581.0,2580.8,8.0]
[1748245181090,0.55,2581.1,2580.6,0.38268166]
[1748245181091,4.23683579,2580.9,2580.6,0.38268166]
[1748245181264,8.10483579,2580.9,2580.8,3.29621071]
[1748245183011,8.65483579,2580.9,2580.8,3.29621071]
[1748245183218,8.65483579,2580.9,2580.8,11.29621071]
[1748245183219,10.38666699,2580.9,2580.8,11.29621071]
[1748245184821,9.83666699,2580.9,2580.8,11.29621071]
[1748245186489,5.96866699,2580.9,2580.8,11.29621071]
[1748245186699,4.23683579,2580.9,2580.8,11.29621071]
[1748245186920,8.10583579,2580.9,2580.8,11.29621071]
[1748245188955,4.23109948,2580.9,2580.8,11.29621071]
[1748245189231,4.23109948,2580.9,2580.8,14.59242142]
[1748245190035,0.36209948,2580.9,2580.8,14.59242142]
[1748245190530,4.23109948,2580.9,2580.8,14.59242142]
[1748245190935,3.87418121,2581.2,2580.9,8.0]
[1748245191146,3.869,2581.1,2580.8,6.59242142]
[1748245191439,3.869,2581.1,2580.9,8.0]
[1748245191630,3.869,2581.1,2580.7,2.00899088]
[1748245191945,0.61617588,2581.7,2580.9,1.1878]
[1748245192150,3.87381023,2581.5,2580.9,1.57524969]
[1748245192308,3.87381023,2581.5,2581.4,11.29621071]
[1748245192496,5.05685257,2581.5,2581.4,11.29621071]
[1748245193827,8.108,2581.6,2581.4,11.29621071]
[1748245193828,11.98161454,2581.6,2581.4,3.29621071]
[1748245194034,3.87296669,2582.0,2581.5,4.53551071]
[1748245194231,8.11212799,2581.9,2581.6,8.0]
[1748245194436,8.11212799,2581.9,2581.5,9.2393]
[1748245194743,0.61617588,2582.1,2581.7,9.2767]
[1748245195236,3.87267483,2582.2,2581.7,9.2767]
[1748245195396,5.45798176,2582.2,2582.1,8.0]
[1748245195600,10.64861965,2582.5,2582.1,9.2767]
[1748245195797,14.51761965,2582.5,2582.4,11.29621071]
[1748245196022,10.64861965,2582.5,2582.4,11.29621071]
[1748245197107,10.64861965,2582.5,2582.4,11.68223222]
[1748245198137,2.53733743,2582.5,2582.4,11.68223222]
[1748245198938,6.40955427,2582.5,2582.4,11.68223222]
[1748245199149,2.53733743,2582.5,2582.4,11.68223222]
[1748245199311,3.87211886,2582.6,2582.5,8.0]
[1748245199499,6.29282376,2582.6,2582.4,3.68223222]
[1748245199705,3.87221684,2582.5,2582.4,3.68223222]
[1748245204223,3.87221684,2582.5,2582.4,3.87704177]
[1748245205260,0.05,2582.9,2582.4,3.87704177]
[1748245205423,3.87194999,2582.7,2582.4,0.58083106]
[1748245205626,1.16617588,2583.5,2582.4,0.58083106]
[1748245205627,0.61617588,2583.5,2582.9,9.2596]
[1748245205858,0.61617588,2583.5,2583.4,11.29621071]
[1748245205859,4.48694563,2583.5,2583.4,11.29621071]
[1748245206062,6.04640972,2583.5,2583.4,11.29621071]
[1748245206247,5.43023384,2583.5,2583.4,11.29621071]
[1748245207125,5.43023384,2583.5,2583.4,11.67472764]
[1748245211462,5.98023384,2583.5,2583.4,8.37851693]
[1748245212063,5.98023384,2583.5,2583.4,0.37851693]
[1748245212266,3.87101769,2583.3,2583.2,3.29621071]
[1748245212460,8.7221539,2583.3,2583.2,11.29621071]
[1748245212624,8.7221539,2583.3,2583.2,3.29621071]
[1748245213228,3.87116754,2583.2,2583.1,11.29621071]
[1748245214056,3.87116754,2583.2,2583.1,11.68261299]
[1748245214257,5.51758772,2583.2,2583.1,11.68261299]
[1748245214740,5.51758772,2583.2,2583.1,0.38640228]
[1748245214943,3.87221684,2582.5,2582.4,3.49043799]
[1748245215670,3.87221684,2582.5,2582.4,3.29621071]
[1748245215969,5.03324642,2582.5,2582.4,3.29621071]
[1748245216134,8.89924642,2582.5,2582.4,3.29621071]
[1748245216633,8.89924642,2582.5,2582.4,11.49346497]
[1748245220067,8.89924642,2582.5,2582.4,11.87117135]
[1748245221066,5.03324642,2582.5,2582.4,11.87117135]
[1748245221278,8.90024642,2582.5,2582.4,11.87117135]
[1748245221774,8.90024642,2582.5,2582.4,11.67391709]
[1748245225245,8.90024642,2582.5,2582.4,3.6272658]